Workbook

Sheet LESTVICA redni del
A1: Športne igre Jesenic 2023/24 – Liga v odbojki, lestvica
D3: Tekme | F3: Seti | I3: Točke v setih
A4: poz. | B4: ekipa | C4: točke | D4: zm. | E4: izg. | F4: zm. | G4: izg. | H4: količnik | I4: zm. | J4: izg. | K4: količnik
A5: 1 | B5: =L5 -> 20 centi | C5: =SUMPRODUCT((ekipa1=$L5)*((tocke11)))+SUMPRODUCT((ekipa2=$L5)*((tocke12))) -> 36 | D5: =SUMPRODUCT((ekipa1=$L5)*((_rez11)>(_rez12)))+SUMPRODUCT((ekipa2=$L5)*((_rez11)<(_rez12))) -> 12 | E5: =SUMPRODUCT((ekipa1=$L5)*((_rez11)<(_rez12)))+SUMPRODUCT((ekipa2=$L5)*((_rez11)>(_rez12))) -> 2 | F5: =SUMPRODUCT((ekipa1=$L5)*((_set11)>(_set12)))+SUMPRODUCT((ekipa2=$L5)*((_set11)<(_set12)))+SUMPRODUCT((ekipa1=$L5)*((_set21)>(_set22)))+SUMPRODUCT((ekipa2=$L5)*((_set21)<(_set22)))+SUMPRODUCT((ekipa1=$L5)*((_set31)>(_set32)))+SUMPRODUCT((ekipa2=$L5)*((_set31)<(_set32))) -> 25 | G5: =SUMPRODUCT((ekipa1=$L5)*((_set12)>(_set11)))+SUMPRODUCT((ekipa2=$L5)*((_set12)<(_set11)))+SUMPRODUCT((ekipa1=$L5)*((_set22)>(_set21)))+SUMPRODUCT((ekipa2=$L5)*((_set22)<(_set21)))+SUMPRODUCT((ekipa1=$L5)*((_set32)>(_set31)))+SUMPRODUCT((ekipa2=$L5)*((_set32)<(_set31))) -> 5 | H5: =IF(AND((G5=0)*(F5=0)),0,IF(G5>0,F5/G5,"")) -> 5 | I5: =SUMPRODUCT((ekipa1=$L5)*(_set11))+SUMPRODUCT((ekipa2=$L5)*(_set12))+SUMPRODUCT((ekipa1=$L5)*(_set21))+SUMPRODUCT((ekipa2=$L5)*(_set22))+SUMPRODUCT((ekipa1=$L5)*(_set31))+SUMPRODUCT((ekipa2=$L5)*(_set32)) -> 672 | J5: =SUMPRODUCT((ekipa1=$L5)*(_set12))+SUMPRODUCT((ekipa2=$L5)*(_set11))+SUMPRODUCT((ekipa1=$L5)*(_set22))+SUMPRODUCT((ekipa2=$L5)*(_set21))+SUMPRODUCT((ekipa1=$L5)*(_set32))+SUMPRODUCT((ekipa2=$L5)*(_set31)) -> 549 | K5: =IF(AND((J5=0)*(I5=0)),0,IF(J5>0,I5/J5,"")) -> 1.224043716 | L5: 20 centi
A6: 2 | B6: =L6 -> Max bar | C6: =SUMPRODUCT((ekipa1=$L6)*((tocke11)))+SUMPRODUCT((ekipa2=$L6)*((tocke12))) -> 32 | D6: =SUMPRODUCT((ekipa1=$L6)*((_rez11)>(_rez12)))+SUMPRODUCT((ekipa2=$L6)*((_rez11)<(_rez12))) -> 11 | E6: =SUMPRODUCT((ekipa1=$L6)*((_rez11)<(_rez12)))+SUMPRODUCT((ekipa2=$L6)*((_rez11)>(_rez12))) -> 3 | F6: =SUMPRODUCT((ekipa1=$L6)*((_set11)>(_set12)))+SUMPRODUCT((ekipa2=$L6)*((_set11)<(_set12)))+SUMPRODUCT((ekipa1=$L6)*((_set21)>(_set22)))+SUMPRODUCT((ekipa2=$L6)*((_set21)<(_set22)))+SUMPRODUCT((ekipa1=$L6)*((_set31)>(_set32)))+SUMPRODUCT((ekipa2=$L6)*((_set31)<(_set32))) -> 23 | G6: =SUMPRODUCT((ekipa1=$L6)*((_set12)>(_set11)))+SUMPRODUCT((ekipa2=$L6)*((_set12)<(_set11)))+SUMPRODUCT((ekipa1=$L6)*((_set22)>(_set21)))+SUMPRODUCT((ekipa2=$L6)*((_set22)<(_set21)))+SUMPRODUCT((ekipa1=$L6)*((_set32)>(_set31)))+SUMPRODUCT((ekipa2=$L6)*((_set32)<(_set31))) -> 8 | H6: =IF(AND((G6=0)*(F6=0)),0,IF(G6>0,F6/G6,"")) -> 2.875 | I6: =SUMPRODUCT((ekipa1=$L6)*(_set11))+SUMPRODUCT((ekipa2=$L6)*(_set12))+SUMPRODUCT((ekipa1=$L6)*(_set21))+SUMPRODUCT((ekipa2=$L6)*(_set22))+SUMPRODUCT((ekipa1=$L6)*(_set31))+SUMPRODUCT((ekipa2=$L6)*(_set32)) -> 726 | J6: =SUMPRODUCT((ekipa1=$L6)*(_set12))+SUMPRODUCT((ekipa2=$L6)*(_set11))+SUMPRODUCT((ekipa1=$L6)*(_set22))+SUMPRODUCT((ekipa2=$L6)*(_set21))+SUMPRODUCT((ekipa1=$L6)*(_set32))+SUMPRODUCT((ekipa2=$L6)*(_set31)) -> 573 | K6: =IF(AND((J6=0)*(I6=0)),0,IF(J6>0,I6/J6,"")) -> 1.267015707 | L6: Max bar
A7: 3 | B7: =L7 -> Manaja | C7: =SUMPRODUCT((ekipa1=$L7)*((tocke11)))+SUMPRODUCT((ekipa2=$L7)*((tocke12))) -> 21 | D7: =SUMPRODUCT((ekipa1=$L7)*((_rez11)>(_rez12)))+SUMPRODUCT((ekipa2=$L7)*((_rez11)<(_rez12))) -> 6 | E7: =SUMPRODUCT((ekipa1=$L7)*((_rez11)<(_rez12)))+SUMPRODUCT((ekipa2=$L7)*((_rez11)>(_rez12))) -> 7 | F7: =SUMPRODUCT((ekipa1=$L7)*((_set11)>(_set12)))+SUMPRODUCT((ekipa2=$L7)*((_set11)<(_set12)))+SUMPRODUCT((ekipa1=$L7)*((_set21)>(_set22)))+SUMPRODUCT((ekipa2=$L7)*((_set21)<(_set22)))+SUMPRODUCT((ekipa1=$L7)*((_set31)>(_set32)))+SUMPRODUCT((ekipa2=$L7)*((_set31)<(_set32))) -> 16 | G7: =SUMPRODUCT((ekipa1=$L7)*((_set12)>(_set11)))+SUMPRODUCT((ekipa2=$L7)*((_set12)<(_set11)))+SUMPRODUCT((ekipa1=$L7)*((_set22)>(_set21)))+SUMPRODUCT((ekipa2=$L7)*((_set22)<(_set21)))+SUMPRODUCT((ekipa1=$L7)*((_set32)>(_set31)))+SUMPRODUCT((ekipa2=$L7)*((_set32)<(_set31))) -> 15 | H7: =IF(AND((G7=0)*(F7=0)),0,IF(G7>0,F7/G7,"")) -> 1.066666667 | I7: =SUMPRODUCT((ekipa1=$L7)*(_set11))+SUMPRODUCT((ekipa2=$L7)*(_set12))+SUMPRODUCT((ekipa1=$L7)*(_set21))+SUMPRODUCT((ekipa2=$L7)*(_set22))+SUMPRODUCT((ekipa1=$L7)*(_set31))+SUMPRODUCT((ekipa2=$L7)*(_set32)) -> 660 | J7: =SUMPRODUCT((ekipa1=$L7)*(_set12))+SUMPRODUCT((ekipa2=$L7)*(_set11))+SUMPRODUCT((ekipa1=$L7)*(_set22))+SUMPRODUCT((ekipa2=$L7)*(_set21))+SUMPRODUCT((ekipa1=$L7)*(_set32))+SUMPRODUCT((ekipa2=$L7)*(_set31)) -> 613 | K7: =IF(AND((J7=0)*(I7=0)),0,IF(J7>0,I7/J7,"")) -> 1.076672104 | L7: Manaja
A8: 4 | B8: =L8 -> Story team | C8: =SUMPRODUCT((ekipa1=$L8)*((tocke11)))+SUMPRODUCT((ekipa2=$L8)*((tocke12))) -> 15 | D8: =SUMPRODUCT((ekipa1=$L8)*((_rez11)>(_rez12)))+SUMPRODUCT((ekipa2=$L8)*((_rez11)<(_rez12))) -> 6 | E8: =SUMPRODUCT((ekipa1=$L8)*((_rez11)<(_rez12)))+SUMPRODUCT((ekipa2=$L8)*((_rez11)>(_rez12))) -> 7 | F8: =SUMPRODUCT((ekipa1=$L8)*((_set11)>(_set12)))+SUMPRODUCT((ekipa2=$L8)*((_set11)<(_set12)))+SUMPRODUCT((ekipa1=$L8)*((_set21)>(_set22)))+SUMPRODUCT((ekipa2=$L8)*((_set21)<(_set22)))+SUMPRODUCT((ekipa1=$L8)*((_set31)>(_set32)))+SUMPRODUCT((ekipa2=$L8)*((_set31)<(_set32))) -> 12 | G8: =SUMPRODUCT((ekipa1=$L8)*((_set12)>(_set11)))+SUMPRODUCT((ekipa2=$L8)*((_set12)<(_set11)))+SUMPRODUCT((ekipa1=$L8)*((_set22)>(_set21)))+SUMPRODUCT((ekipa2=$L8)*((_set22)<(_set21)))+SUMPRODUCT((ekipa1=$L8)*((_set32)>(_set31)))+SUMPRODUCT((ekipa2=$L8)*((_set32)<(_set31))) -> 17 | H8: =IF(AND((G8=0)*(F8=0)),0,IF(G8>0,F8/G8,"")) -> 0.7058823529 | I8: =SUMPRODUCT((ekipa1=$L8)*(_set11))+SUMPRODUCT((ekipa2=$L8)*(_set12))+SUMPRODUCT((ekipa1=$L8)*(_set21))+SUMPRODUCT((ekipa2=$L8)*(_set22))+SUMPRODUCT((ekipa1=$L8)*(_set31))+SUMPRODUCT((ekipa2=$L8)*(_set32)) -> 585 | J8: =SUMPRODUCT((ekipa1=$L8)*(_set12))+SUMPRODUCT((ekipa2=$L8)*(_set11))+SUMPRODUCT((ekipa1=$L8)*(_set22))+SUMPRODUCT((ekipa2=$L8)*(_set21))+SUMPRODUCT((ekipa1=$L8)*(_set32))+SUMPRODUCT((ekipa2=$L8)*(_set31)) -> 625 | K8: =IF(AND((J8=0)*(I8=0)),0,IF(J8>0,I8/J8,"")) -> 0.936 | L8: Story team
A9: 5 | B9: =L9 -> Rožice | C9: =SUMPRODUCT((ekipa1=$L9)*((tocke11)))+SUMPRODUCT((ekipa2=$L9)*((tocke12))) -> 16 | D9: =SUMPRODUCT((ekipa1=$L9)*((_rez11)>(_rez12)))+SUMPRODUCT((ekipa2=$L9)*((_rez11)<(_rez12))) -> 5 | E9: =SUMPRODUCT((ekipa1=$L9)*((_rez11)<(_rez12)))+SUMPRODUCT((ekipa2=$L9)*((_rez11)>(_rez12))) -> 9 | F9: =SUMPRODUCT((ekipa1=$L9)*((_set11)>(_set12)))+SUMPRODUCT((ekipa2=$L9)*((_set11)<(_set12)))+SUMPRODUCT((ekipa1=$L9)*((_set21)>(_set22)))+SUMPRODUCT((ekipa2=$L9)*((_set21)<(_set22)))+SUMPRODUCT((ekipa1=$L9)*((_set31)>(_set32)))+SUMPRODUCT((ekipa2=$L9)*((_set31)<(_set32))) -> 11 | G9: =SUMPRODUCT((ekipa1=$L9)*((_set12)>(_set11)))+SUMPRODUCT((ekipa2=$L9)*((_set12)<(_set11)))+SUMPRODUCT((ekipa1=$L9)*((_set22)>(_set21)))+SUMPRODUCT((ekipa2=$L9)*((_set22)<(_set21)))+SUMPRODUCT((ekipa1=$L9)*((_set32)>(_set31)))+SUMPRODUCT((ekipa2=$L9)*((_set32)<(_set31))) -> 18 | H9: =IF(AND((G9=0)*(F9=0)),0,IF(G9>0,F9/G9,"")) -> 0.6111111111 | I9: =SUMPRODUCT((ekipa1=$L9)*(_set11))+SUMPRODUCT((ekipa2=$L9)*(_set12))+SUMPRODUCT((ekipa1=$L9)*(_set21))+SUMPRODUCT((ekipa2=$L9)*(_set22))+SUMPRODUCT((ekipa1=$L9)*(_set31))+SUMPRODUCT((ekipa2=$L9)*(_set32)) -> 578 | J9: =SUMPRODUCT((ekipa1=$L9)*(_set12))+SUMPRODUCT((ekipa2=$L9)*(_set11))+SUMPRODUCT((ekipa1=$L9)*(_set22))+SUMPRODUCT((ekipa2=$L9)*(_set21))+SUMPRODUCT((ekipa1=$L9)*(_set32))+SUMPRODUCT((ekipa2=$L9)*(_set31)) -> 579 | K9: =IF(AND((J9=0)*(I9=0)),0,IF(J9>0,I9/J9,"")) -> 0.9982728843 | L9: Rožice
A10: 6 | B10: =L10 -> Kripl bataljon | C10: =SUMPRODUCT((ekipa1=$L10)*((tocke11)))+SUMPRODUCT((ekipa2=$L10)*((tocke12))) -> 0 | D10: =SUMPRODUCT((ekipa1=$L10)*((_rez11)>(_rez12)))+SUMPRODUCT((ekipa2=$L10)*((_rez11)<(_rez12))) -> 0 | E10: =SUMPRODUCT((ekipa1=$L10)*((_rez11)<(_rez12)))+SUMPRODUCT((ekipa2=$L10)*((_rez11)>(_rez12))) -> 12 | F10: =SUMPRODUCT((ekipa1=$L10)*((_set11)>(_set12)))+SUMPRODUCT((ekipa2=$L10)*((_set11)<(_set12)))+SUMPRODUCT((ekipa1=$L10)*((_set21)>(_set22)))+SUMPRODUCT((ekipa2=$L10)*((_set21)<(_set22)))+SUMPRODUCT((ekipa1=$L10)*((_set31)>(_set32)))+SUMPRODUCT((ekipa2=$L10)*((_set31)<(_set32))) -> 0 | G10: =SUMPRODUCT((ekipa1=$L10)*((_set12)>(_set11)))+SUMPRODUCT((ekipa2=$L10)*((_set12)<(_set11)))+SUMPRODUCT((ekipa1=$L10)*((_set22)>(_set21)))+SUMPRODUCT((ekipa2=$L10)*((_set22)<(_set21)))+SUMPRODUCT((ekipa1=$L10)*((_set32)>(_set31)))+SUMPRODUCT((ekipa2=$L10)*((_set32)<(_set31))) -> 24 | H10: =IF(AND((G10=0)*(F10=0)),0,IF(G10>0,F10/G10,"")) -> 0 | I10: =SUMPRODUCT((ekipa1=$L10)*(_set11))+SUMPRODUCT((ekipa2=$L10)*(_set12))+SUMPRODUCT((ekipa1=$L10)*(_set21))+SUMPRODUCT((ekipa2=$L10)*(_set22))+SUMPRODUCT((ekipa1=$L10)*(_set31))+SUMPRODUCT((ekipa2=$L10)*(_set32)) -> 318 | J10: =SUMPRODUCT((ekipa1=$L10)*(_set12))+SUMPRODUCT((ekipa2=$L10)*(_set11))+SUMPRODUCT((ekipa1=$L10)*(_set22))+SUMPRODUCT((ekipa2=$L10)*(_set21))+SUMPRODUCT((ekipa1=$L10)*(_set32))+SUMPRODUCT((ekipa2=$L10)*(_set31)) -> 600 | K10: =IF(AND((J10=0)*(I10=0)),0,IF(J10>0,I10/J10,"")) -> 0.53 | L10: Kripl bataljon

Sheet RAZPORED in REZULTATI
B1: REZULTATI, RAZPORED - Liga v odbojki 2023/24 | N1: točke za lestvico
A2: Št. | B2: Datum | C2: Ekipa 1 | D2: Ekipa 2 | E2: Ura, igrišče | F2: 1. set | H2: 2. set | J2: 3. set | L2: Rezultat | N2: t1 | O2: t2 | P2: Sodili:
A3: 1 | B3: 2023-11-14 | C3: Max bar | D3: Manaja | E3: 19:00-1 | F3: 25 | G3: 10 | H3: 24 | I3: 26 | J3: 12 | K3: 15 | L3: =IF(F3>G3,1,0)+IF(H3>I3,1,0)+IF(J3>K3,1,0) -> 1 | M3: =IF(G3>F3,1,0)+IF(I3>H3,1,0)+IF(K3>J3,1,0) -> 2 | N3: =IF(AND(L3=2,M3=0),3,L3) -> 1 | O3: =IF(AND(M3=2,L3=0),3,M3) -> 2 | P3: Divjak | R3: Sodniki število tekem:
A4: 2 | C4: Story team | D4: 20 centi | E4: 19:00-2 | F4: 12 | G4: 25 | H4: 22 | I4: 25 | L4: 0 | M4: 2 | N4: 0 | O4: 3 | P4: Gaber | R4: Divjak | S4: =COUNTIF(P3:P58,R4) -> 18
A5: 3 | C5: Manaja | D5: Story team | E5: 20:00-1 | F5: 25 | G5: 16 | H5: 26 | I5: 28 | J5: 10 | K5: 15 | L5: =IF(F5>G5,1,0)+IF(H5>I5,1,0)+IF(J5>K5,1,0) -> 1 | M5: =IF(G5>F5,1,0)+IF(I5>H5,1,0)+IF(K5>J5,1,0) -> 2 | N5: 1 | O5: 2 | P5: Divjak
A6: 4 | C6: 20 centi | D6: Max bar | E6: 20:00-2 | F6: 25 | G6: 23 | H6: 25 | I6: 22 | L6: 2 | M6: 0 | N6: 3 | O6: 0 | P6: Gaber | R6: Gaber | S6: =COUNTIF(P3:P58,R6) -> 8
A7: 5 | B7: 2023-11-21 | C7: 20 centi | D7: Rožice | E7: 19:00-1 | F7: 0 | G7: 25 | H7: 0 | I7: 25 | L7: 0 | M7: 2 | N7: 0 | O7: 3 | P7: Divjak | R7: Subo | S7: =COUNTIF(P4:P59,R7) -> 10
A8: 6 | C8: Max bar | D8: Story team | E8: 19:00-2 | F8: 25 | G8: 20 | H8: 25 | I8: 14 | L8: 2 | M8: 0 | N8: 3 | O8: 0 | P8: Subo
A9: 7 | C9: Rožice | D9: Max bar | E9: 20:00-1 | F9: 21 | G9: 25 | H9: 19 | I9: 25 | L9: 0 | M9: 2 | N9: 0 | O9: 3 | P9: Divjak
A10: 8 | C10: Manaja | D10: 20 centi | E10: 20:00-2 | F10: 17 | G10: 25 | H10: 17 | I10: 25 | L10: 0 | M10: 2 | N10: 0 | O10: 3 | P10: Subo
A11: 9 | B11: 2023-11-28 | C11: Max bar | D11: Kripl bataljon | E11: 19:00-1 | F11: 25 | G11: 8 | H11: 25 | I11: 12 | L11: 2 | M11: 0 | N11: 3 | O11: 0 | P11: Divjak
A12: 10 | C12: Manaja | D12: Rožice | E12: 19:00-2 | F12: 25 | G12: 18 | H12: 25 | I12: 12 | L12: 2 | M12: 0 | N12: 3 | O12: 0 | P12: subo
A13: 11 | C13: Max bar | D13: Rožice | E13: 20:00-1 | F13: 28 | G13: 26 | H13: 25 | I13: 17 | L13: 2 | M13: =IF(G13>F13,1,0)+IF(I13>H13,1,0)+IF(K13>J13,1,0) -> 0 | N13: 3 | O13: 0 | P13: Divjak
A14: 12 | C14: Manaja | D14: Kripl bataljon | E14: 20:00-2 | F14: 25 | G14: 9 | H14: 25 | I14: 21 | L14: 2 | M14: =IF(G14>F14,1,0)+IF(I14>H14,1,0)+IF(K14>J14,1,0) -> 0 | N14: 3 | O14: 0 | P14: Subo
A15: 13 | B15: 2023-12-05 | C15: Kripl bataljon | D15: 20 centi | E15: 19:00-1 | F15: 15 | G15: 25 | H15: 15 | I15: 25 | L15: =IF(F15>G15,1,0)+IF(H15>I15,1,0)+IF(J15>K15,1,0) -> 0 | M15: =IF(G15>F15,1,0)+IF(I15>H15,1,0)+IF(K15>J15,1,0) -> 2 | N15: 0 | O15: 3 | P15: Divjak
A16: 14 | C16: Rožice | D16: Story team | E16: 19:00-2 | F16: 25 | G16: 17 | H16: 25 | I16: 21 | L16: =IF(F16>G16,1,0)+IF(H16>I16,1,0)+IF(J16>K16,1,0) -> 2 | M16: =IF(G16>F16,1,0)+IF(I16>H16,1,0)+IF(K16>J16,1,0) -> 0 | N16: 3 | O16: 0 | P16: Subo
A17: 15 | C17: Kripl bataljon | D17: Story team | E17: 20:00-1 | F17: 21 | G17: 25 | H17: 11 | I17: 25 | L17: =IF(F17>G17,1,0)+IF(H17>I17,1,0)+IF(J17>K17,1,0) -> 0 | M17: =IF(G17>F17,1,0)+IF(I17>H17,1,0)+IF(K17>J17,1,0) -> 2 | N17: 0 | O17: 3 | P17: Divjak
A18: 16 | C18: Rožice | D18: 20 centi | E18: 20:00-2 | F18: 16 | G18: 25 | H18: 22 | I18: 25 | L18: =IF(F18>G18,1,0)+IF(H18>I18,1,0)+IF(J18>K18,1,0) -> 0 | M18: =IF(G18>F18,1,0)+IF(I18>H18,1,0)+IF(K18>J18,1,0) -> 2 | N18: 0 | O18: 3 | P18: Subo
A19: 17 | B19: 2023-12-12 | C19: Max bar | D19: Story team | E19: 19:00-1 | F19: 25 | G19: 17 | H19: 25 | I19: 20 | L19: 2 | M19: 0 | N19: 3 | O19: 0 | P19: Subo
A20: 18 | C20: Rožice | D20: Manaja | E20: 19:00-2 | F20: 16 | G20: 25 | H20: 19 | I20: 25 | L20: 0 | M20: 2 | N20: 0 | O20: 3 | P20: Divjak
A21: 19 | C21: Manaja | D21: Max bar | E21: 20:00-1 | F21: 17 | G21: 25 | H21: 24 | I21: 26 | L21: 0 | M21: 2 | N21: 0 | O21: 3 | P21: Subo
A22: 20 | C22: Story team | D22: Rožice | E22: 20:00-2 | F22: 25 | G22: 14 | H22: 25 | I22: 14 | L22: 2 | M22: 0 | N22: 3 | O22: 0 | P22: Divjak
A23: 21 | B23: 2023-12-19 | C23: Kripl bataljon | D23: 20 centi | E23: 19:00-1 | F23: 10 | G23: 25 | H23: 16 | I23: 25 | L23: 0 | M23: 2 | N23: 0 | O23: 3 | P23: Divjak
A24: 22 | C24: Manaja | D24: Story team | E24: 19:00-2 | F24: 25 | G24: 27 | H24: 25 | I24: 10 | J24: 13 | K24: 15 | L24: 1 | M24: 2 | N24: 1 | O24: 2 | P24: Gaber
A25: 23 | C25: 20 centi | D25: Manaja | E25: 20:00-1 | F25: 25 | G25: 22 | H25: 25 | I25: 22 | L25: 2 | M25: 0 | N25: 3 | O25: 0 | P25: Divjak
A26: 24 | C26: Kripl bataljon | D26: Story team | E26: 20:00-2 | F26: 12 | G26: 25 | H26: 16 | I26: 25 | L26: 0 | M26: 2 | N26: 0 | O26: 3 | P26: Gaber
A27: 25 | B27: 2024-01-09 | C27: Rožice | D27: Kripl bataljon | E27: 19:00-1 | F27: 25 | G27: 13 | H27: 25 | I27: 17 | L27: =IF(F27>G27,1,0)+IF(H27>I27,1,0)+IF(J27>K27,1,0) -> 2 | M27: =IF(G27>F27,1,0)+IF(I27>H27,1,0)+IF(K27>J27,1,0) -> 0 | N27: 3 | O27: 0 | P27: Divjak
A28: 26 | C28: 20 centi | D28: Max bar | E28: 19:00-2 | F28: 25 | G28: 21 | H28: 25 | I28: 10 | L28: =IF(F28>G28,1,0)+IF(H28>I28,1,0)+IF(J28>K28,1,0) -> 2 | M28: =IF(G28>F28,1,0)+IF(I28>H28,1,0)+IF(K28>J28,1,0) -> 0 | N28: 3 | O28: 0 | P28: Subo
A29: 27 | C29: Max bar | D29: Kripl bataljon | E29: 20:00-1 | F29: 25 | G29: 12 | H29: 25 | I29: 8 | L29: =IF(F29>G29,1,0)+IF(H29>I29,1,0)+IF(J29>K29,1,0) -> 2 | M29: =IF(G29>F29,1,0)+IF(I29>H29,1,0)+IF(K29>J29,1,0) -> 0 | N29: 3 | O29: 0 | P29: Divjak
A30: 28 | C30: Rožice | D30: 20 centi | E30: 20:00-2 | F30: 18 | G30: 25 | H30: 15 | I30: 25 | L30: =IF(F30>G30,1,0)+IF(H30>I30,1,0)+IF(J30>K30,1,0) -> 0 | M30: =IF(G30>F30,1,0)+IF(I30>H30,1,0)+IF(K30>J30,1,0) -> 2 | N30: 0 | O30: 3 | P30: Subo
A31: 29 | B31: 2024-01-16 | C31: Rožice | D31: Kripl bataljon | E31: 19:00-1 | F31: 25 | G31: 17 | H31: 25 | I31: 9 | L31: 2 | M31: 0 | N31: 3 | O31: 0 | P31: Divjak
A32: 30 | C32: Manaja | D32: Story team | E32: 19:00-2 | F32: 25 | G32: 23 | H32: 25 | I32: 23 | L32: 2 | M32: 0 | N32: 3 | O32: 0 | P32: Gaber
A33: 31 | C33: Manaja | D33: Kripl bataljon | E33: 20:00-1 | F33: 25 | G33: 15 | H33: 25 | I33: 10 | L33: 2 | M33: 0 | N33: 3 | O33: 0 | P33: Divjak
A34: 32 | C34: Story team | D34: Rožice | E34: 20:00-2 | F34: 15 | G34: 25 | H34: 25 | I34: 21 | J34: 15 | K34: 12 | L34: 2 | M34: 1 | N34: 2 | O34: 1 | P34: Gaber
A35: 33 | B35: 2024-01-23 | C35: Story team | D35: 20 centi | E35: 19:00-1 | F35: 16 | G35: 25 | H35: 18 | I35: 25 | L35: 0 | M35: 2 | N35: 0 | O35: 3 | P35: Divjak
A36: 34 | C36: Manaja | D36: Max bar | E36: 19:00-2 | F36: 18 | G36: 25 | H36: 26 | I36: 24 | J36: 12 | K36: 15 | L36: 1 | M36: 2 | N36: 1 | O36: 2 | P36: Gaber
A37: 35 | C37: Max bar | D37: Story team | E37: 20:00-1 | F37: 30 | G37: 28 | H37: 25 | I37: 18 | L37: 2 | M37: 0 | N37: 3 | O37: 0 | P37: Divjak
A38: 36 | C38: 20 centi | D38: Manaja | E38: 20:00-2 | F38: 18 | G38: 25 | H38: 25 | I38: 20 | J38: 17 | K38: 15 | L38: 2 | M38: 1 | N38: 2 | O38: 1 | P38: Gaber
A39: 37 | B39: 2024-01-30 | C39: Rožice | D39: Kripl bataljon | E39: 19:00-1 | F39: 25 | G39: 12 | H39: 25 | I39: 15 | L39: 2 | M39: 0 | N39: 3 | O39: 0
A40: 38 | C40: 20 centi | D40: Max bar | E40: 19:00-2 | F40: 27 | G40: 25 | H40: 21 | I40: 25 | J40: 14 | K40: 16 | L40: 1 | M40: 2 | N40: 1 | O40: 2
A41: 39 | C41: Max bar | D41: Rožice | E41: 20:00-1 | F41: 25 | G41: 12 | H41: 25 | I41: 11 | L41: 2 | M41: 0 | N41: 3 | O41: 0
A42: 40 | C42: Kripl bataljon | D42: 20 centi | E42: 20:00-2 | F42: 11 | G42: 25 | H42: 13 | I42: 25 | L42: 0 | M42: 2 | N42: 0 | O42: 3
A43: 41 | B43: 2024-02-06 | C43: Kripl bataljon | D43: Story team | E43: 19:00-1 | L43: 0 | M43: 0 | N43: 0 | O43: 0
A44: 42 | C44: Rožice | D44: Manaja | E44: 19:00-2 | L44: 0 | M44: 0 | N44: 0 | O44: 0
A45: 43 | C45: Manaja | D45: Kripl bataljon | E45: 20:00-1 | L45: 0 | M45: 0 | N45: 0 | O45: 0
A46: 44 | B46: 2023-02-13 | C46: Story team | D46: 20 centi | E46: 19:00-2 | L46: 0 | M46: 0 | N46: 0 | O46: 0
A47: 45 | C47: Max bar | D47: Kripl bataljon | E47: 20:00-1 | L47: 0 | M47: 0 | N47: 0 | O47: 0

Sheet KONČNICA
A1: KONČNICA
B2: REZULTATI, RAZPORED - Liga v odbojki 2023/24
A3: Št. | B3: Datum | C3: Ekipa 1 | D3: Ekipa 2 | E3: Ura, igrišče | F3: 1. set | H3: 2. set | J3: 3. set | L3: Rezultat | O3: t2 | P3: Sodili:
A4: 46 | B4: 2024-02-27 | C4: 1. uvrščeni | D4: 3. uvrščeni | E4: 18:30-1 | F4: skupina 1 | M4: =IF(G4>H4,1,0)+IF(I4>J4,1,0)+IF(K4>L4,1,0) -> 0 | N4: =IF(H4>G4,1,0)+IF(J4>I4,1,0)+IF(L4>K4,1,0) -> 0
A5: 47 | C5: 6. uvrščeni | D5: 3.uvrščeni | E5: 19:15-1 | F5: igrišče 1 | M5: =IF(G5>H5,1,0)+IF(I5>J5,1,0)+IF(K5>L5,1,0) -> 0 | N5: =IF(H5>G5,1,0)+IF(J5>I5,1,0)+IF(L5>K5,1,0) -> 0
A6: 48 | C6: 6. uvrščeni | D6: 1. uvrščeni | E6: 20:00-1 | M6: =IF(G6>H6,1,0)+IF(I6>J6,1,0)+IF(K6>L6,1,0) -> 0 | N6: =IF(H6>G6,1,0)+IF(J6>I6,1,0)+IF(L6>K6,1,0) -> 0
A7: 49 | C7: 2. uvrščeni | D7: 4. uvrščeni | E7: 18:30-2 | F7: skupina 2 | M7: =IF(G7>H7,1,0)+IF(I7>J7,1,0)+IF(K7>L7,1,0) -> 0 | N7: =IF(H7>G7,1,0)+IF(J7>I7,1,0)+IF(L7>K7,1,0) -> 0
A8: 50 | C8: 5. uvrščeni | D8: 4. uvrščeni | E8: 19:15-2 | F8: igrišče 2 | M8: =IF(G8>H8,1,0)+IF(I8>J8,1,0)+IF(K8>L8,1,0) -> 0 | N8: =IF(H8>G8,1,0)+IF(J8>I8,1,0)+IF(L8>K8,1,0) -> 0
A9: 51 | C9: 5. uvrščeni | D9: 2. uvrščeni | E9: 20:00-2 | M9: =IF(G9>H9,1,0)+IF(I9>J9,1,0)+IF(K9>L9,1,0) -> 0 | N9: =IF(H9>G9,1,0)+IF(J9>I9,1,0)+IF(L9>K9,1,0) -> 0 | P9: =IF(AND(N9=2,M9=0),3,N9) -> 0
A10: 52 | B10: 2024-03-05 | C10: 3. uvrščeni skupina 1 | D10: 3. uvrščeni skupina 2 | E10: 19:00-1 | L10: =IF(F10>G10,1,0)+IF(H10>I10,1,0)+IF(J10>K10,1,0) -> 0 | M10: =IF(G10>F10,1,0)+IF(I10>H10,1,0)+IF(K10>J10,1,0) -> 0 | N10: =IF(AND(L10=2,M10=0),3,L10) -> 0 | O10: =IF(AND(M10=2,L10=0),3,M10) -> 0 | P10: Tekma za 5. mesto
A11: 53 | C11: 2. uvrščeni skupina 1 | D11: 2. uvrščeni skupina 2 | E11: 19:00-2 | L11: 0 | M11: 0 | N11: 0 | O11: 0 | P11: Tekma za 3. mesto
A12: 54 | C12: 1. uvrščeni skupina 1 | D12: 1. uvrščeni skupina 2 | E12: 20:00:00 | L12: =IF(F12>G12,1,0)+IF(H12>I12,1,0)+IF(J12>K12,1,0) -> 0 | M12: =IF(G12>F12,1,0)+IF(I12>H12,1,0)+IF(K12>J12,1,0) -> 0 | P12: Tekma za 1. mesto
B13: 2024-03-12
C14: ZAKLJUČNI TURNIR MEŠANIH EKIP

Sheet Spisek igralcev
C1: 1. kolo | D1: 2. kolo | E1: 3. kolo | F1: 4. kolo | G1: 5. kolo | H1: 6. kolo | I1: 7. kolo | J1: 8. kolo | K1: 9. kolo | L1: 10. kolo | M1: 11. kolo | N1: 12. kolo | O1: 13. kolo | P1: 14. kolo | Q1: 15. kolo | R1: 16. kolo | S1: SKUPAJ
A2: MAX BAR
A3: 1. | B3: Tjaša Berginc | S3: =SUM(C3:R3) -> 0
A4: 2. | B4: Neva Suhadolčan | C4: 2 | G4: 2 | K4: 2 | L4: 2 | S4: =SUM(C4:R4) -> 8
A5: 3. | B5: Urban Subotić | C5: 2 | D5: 2 | E5: 2 | G5: 2 | K5: 2 | L5: 2 | S5: 12
A6: 4. | B6: Juš Hlede | C6: 2 | D6: 2 | E6: 2 | G6: 2 | K6: 2 | L6: 2 | S6: 12
A7: 5. | B7: Nik Zorman | C7: 2 | D7: 2 | E7: 2 | G7: 2 | K7: 2 | L7: 2 | S7: 12
A8: 6. | B8: Nina Smolej | C8: 2 | D8: 2 | E8: 2 | K8: 2 | S8: 8
A9: 7. | B9: John Mark Šorl | C9: 2 | D9: 2 | E9: 2 | G9: 2 | K9: 2 | L9: 2 | S9: 12
A10: 8. | B10: Erik Zupančič | C10: 2 | D10: 2 | E10: 2 | S10: 6
A11: 9. | B11: Meta Resnik | D11: 2 | S11: 2
A12: 10. | B12: Eva Pavlič | C12: 2 | D12: 2 | G12: 2 | K12: 2 | L12: 2 | S12: 10
C13: 1. kolo | D13: 2. kolo | E13: 3. kolo | F13: 4. kolo | G13: 5. kolo | H13: 6. kolo | I13: 7. kolo | J13: 8. kolo | K13: 9. kolo | L13: 10. kolo | M13: 11. kolo | N13: 12. kolo | O13: 13. kolo | P13: 14. kolo | Q13: 15. kolo | R13: 16. kolo | S13: SKUPAJ
A14: ROŽICE
A15: 1. | B15: Urban Potočnik | D15: 2 | E15: 2 | F15: 2 | G15: 2 | S15: =SUM(C15:R15) -> 8
A16: 2. | B16: Maja Nučič | D16: 2 | S16: =SUM(C16:R16) -> 2
A17: 3. | B17: Mojca Kavčič | E17: 2 | G17: 2 | I17: 2 | J17: 2 | S17: 8
A18: 4. | B18: Matjaž Silič | E18: 2 | S18: 2
A19: 5. | B19: Gašper Aljančič | D19: 2 | E19: 2 | I19: 2 | J19: 2 | L19: 2 | S19: 10
A20: 6. | B20: Anže Kuraš | F20: 2 | I20: 2 | S20: 4
A21: 7. | B21: Sergeja Podnar | D21: 2 | E21: 2 | F21: 2 | G21: 2 | I21: 2 | J21: 2 | L21: 2 | S21: 14
A22: 8. | B22: Marijana Sabolič | D22: 2 | E22: 2 | F22: 2 | G22: 2 | I22: 2 | L22: 2 | S22: 12
A23: 9. | B23: Miha Frelih | D23: 2 | G23: 2 | J23: 2 | L23: 2 | S23: 8
A24: 10. | B24: Rok Hlede | D24: 2 | E24: 2 | J24: 2 | L24: 2 | S24: 8
A25: 11. | B25: Alen Štros | D25: 2 | F25: 2 | G25: 2 | S25: 6
A26: 12. | B26: Urška Kalan | S26: 0
A27: 13. | B27: Maša Adleđič | F27: 2 | G27: 2 | J27: 2 | L27: 2 | S27: 8
A28: 14. | B28: Mark Mišič | I28: 2 | L28: 2 | S28: 4
C29: 1. kolo | D29: 2. kolo | E29: 3. kolo | F29: 4. kolo | G29: 5. kolo | H29: 6. kolo | I29: 7. kolo | J29: 8. kolo | K29: 9. kolo | L29: 10. kolo | M29: 11. kolo | N29: 12. kolo | O29: 13. kolo | P29: 14. kolo | Q29: 15. kolo | R29: 16. kolo | S29: SKUPAJ
A30: MANAJA
A31: 1. | B31: Alan Adžovič | S31: =SUM(C31:R31) -> 0
A32: 2. | B32: Jure Jančič | C32: 2 | D32: 1 | E32: 2 | H32: 2 | S32: =SUM(C32:R32) -> 7
A33: 3. | B33: Robi Prešern | C33: 2 | E33: 2 | G33: 2 | H33: 2 | J33: 2 | K33: 2 | S33: 12
A34: 4. | B34: Marko Janjuševič | C34: 2 | G34: 2 | J34: 2 | K34: 2 | S34: 8
A35: 5. | B35: Tina Šorn | D35: 1 | E35: 2 | G35: 2 | H35: 2 | J35: 2 | S35: 9
A36: 6. | B36: Nik Prešern | C36: 2 | E36: 2 | G36: 2 | H36: 2 | K36: 2 | S36: 10
A37: 7. | B37: Nejc Ravnikar | C37: 2 | E37: 2 | G37: 2 | H37: 2 | J37: 2 | S37: 10
A38: 8. | B38: Žiga Vidic | C38: 2 | E38: 2 | G38: 2 | H38: 2 | J38: 2 | K38: 2 | S38: 12
A39: 9. | B39: Pavlič Saša | S39: 0
A40: 10. | B40: Jerneja Osmič Prešeren | C40: 2 | E40: 2 | G40: 2 | H40: 2 | K40: 2 | S40: 10
A41: 11. | B41: Anja Zgaga | G41: 2 | H41: 2 | S41: 4
A42: 12. | S42: 0
C43: 1. kolo | D43: 2. kolo | E43: 3. kolo | F43: 4. kolo | G43: 5. kolo | H43: 6. kolo | I43: 7. kolo | J43: 8. kolo | K43: 9. kolo | L43: 10. kolo | M43: 11. kolo | N43: 12. kolo | O43: 13. kolo | P43: 14. kolo | Q43: 15. kolo | R43: 16. kolo | S43: SKUPAJ
A44: STORY TEAM
A45: 1. | B45: Aleš Fartek | C45: 2 | D45: 1 | G45: 2 | J45: 2 | S45: =SUM(C45:R45) -> 7
A46: 2. | B46: Emir Čatak | S46: =SUM(C46:R46) -> 0
A47: 3. | B47: Danijela Tadič | H47: 2 | S47: 2
A48: 4. | B48: Pia Svetina | F48: 2 | S48: 2
A49: 5. | B49: Maks Pogačnik | J49: 2 | K49: 2 | S49: 4
A50: 6. | B50: Uroš Štalc | C50: 2 | D50: 1 | F50: 2 | G50: 2 | H50: 2 | J50: 2 | K50: 2 | S50: 13
A51: 7. | B51: Robert Petrovski | C51: 2 | D51: 1 | F51: 2 | G51: 2 | H51: 2 | J51: 2 | K51: 2 | S51: 13
A52: 8. | B52: Nina Lukanc | C52: 2 | D52: 1 | G52: 2 | H52: 2 | J52: 2 | K52: 2 | S52: 11
A53: 9. | B53: Doroteja Brgant | C53: 2 | D53: 1 | G53: 2 | H53: 2 | J53: 2 | S53: 9
A54: 10. | B54: Jan Klemenčič | C54: 2 | G54: 2 | H54: 2 | S54: 6
A55: 11. | B55: Nadja Dimitrievska | F55: 2 | S55: 2
A56: 12. | B56: Gregor | F56: 2
A57: 13. | B57: Damjan Pagon | C57: 2 | F57: 2 | S57: 4
C58: 1. kolo | D58: 2. kolo | E58: 3. kolo | F58: 4. kolo | G58: 5. kolo | H58: 6. kolo | I58: 7. kolo | J58: 8. kolo | K58: 9. kolo | L58: 10. kolo | M58: 11. kolo | N58: 12. kolo | O58: 13. kolo | P58: 14. kolo | Q58: 15. kolo | R58: 16. kolo | S58: SKUPAJ
A59: KRIPL BATALJON
A60: 1. | B60: Hana Vovčak | E60: 2 | F60: 2 | H60: 2 | I60: 2 | J60: 2 | L60: 2 | S60: =SUM(C60:R60) -> 12
A61: 2. | B61: Katja Mrak | E61: 2 | F61: 2 | H61: 2 | I61: 2 | J61: 2 | L61: 2 | S61: =SUM(C61:R61) -> 12
A62: 3. | B62: Nuša X | E62: 2 | S62: 2
A63: 4. | B63: Tomaž Lavrič | E63: 2 | H63: 2 | S63: 4
A64: 5. | B64: Gorazd Ravnik | E64: 2 | F64: 2 | H64: 2 | I64: 2 | L64: 2 | S64: 10
A65: 6. | B65: Jani Koselj | E65: 2 | F65: 2 | S65: 4
A66: 7. | B66: Tibor Vovčak | E66: 2 | F66: 2 | H66: 2 | I66: 2 | J66: 2 | L66: 2 | S66: 12
A67: 8. | B67: Rok Vovčak | E67: 2 | S67: 2
A68: 9. | B68: Jaka Štajf | S68: 0
A69: 10. | B69: Dejan Lukan | H69: 2 | I69: 2 | S69: 4
A70: 11. | B70: Matjaž Jarkovič | F70: 2 | I70: 2 | J70: 2 | L70: 2 | S70: 8
A71: 12. | B71: Primož Košir | S71: 0
A72: 13. | B72: Luka Zupančič | F72: 2 | I72: 2 | J72: 2 | L72: 2 | S72: 8
C73: 1. kolo | D73: 2. kolo | E73: 3. kolo | F73: 4. kolo | G73: 5. kolo | H73: 6. kolo | I73: 7. kolo | J73: 8. kolo | K73: 9. kolo | L73: 10. kolo | M73: 11. kolo | N73: 12. kolo | O73: 13. kolo | P73: 14. kolo | Q73: 15. kolo | R73: 16. kolo | S73: SKUPAJ
A74: 20 centi
A75: 1. | B75: David Luskovec | C75: 2 | D75: 2 | F75: 2 | H75: 2 | I75: 2 | K75: 2 | L75: 2 | S75: =SUM(C75:R75) -> 14
A76: 2. | B76: Sandi Ribic | C76: 2 | S76: =SUM(C76:R76) -> 2
A77: 3. | B77: Katja Justin | C77: 2 | D77: 2 | F77: 2 | H77: 2 | I77: 2 | L77: 2 | S77: 12
A78: 4. | B78: Tjasa Vlepic | S78: 0
A79: 5. | B79: Tilen Markun | C79: 2 | F79: 2 | I79: 2 | K79: 2 | L79: 2 | S79: 10
A80: 6. | B80: Tomi Kelert | C80: 2 | D80: 2 | F80: 2 | H80: 2 | I80: 2 | K80: 2 | L80: 2 | S80: 14
A81: 7. | B81: Taja Kobilica | S81: 0
A82: 8. | B82: Mitja Ribič | D82: 2 | F82: 2 | H82: 2 | I82: 2 | K82: 2 | L82: 2 | S82: 12
A83: 9. | B83: Mina Kevlj | H83: 2 | S83: 2
A84: 10. | B84: Maša Premzl | I84: 2 | K84: 2 | S84: 4
A85: 11. | S85: 0
A86: 12. | S86: 0
A87: 13. | S87: 0

Sheet list PCT (hidden)
A1: Ime ekipe: DIHR Solutions
A3: S podpisom jamčim, da izpoljnjujem pogoj PCT na udeležbi na rekreacijski ligi v odbojki.
A5: Ime in priimek | B5: Podpis
A6: Nejc Mežan - vodja ekipe
A7: Gasper Kržišnik
A8: Luka Sinobad
A9: Matej Gašperšič
A10: Matjaž Finžgar
A11: Janez Mikolič
A12: Polona Potočnik
A13: Špela Ulčar
A14: Špela Grilc
A15: Ana Kržišnik

Sheet list PCT (2) (hidden)
A1: Ime ekipe: Rožice
A3: S podpisom jamčim, da izpoljnjujem pogoj PCT na udeležbi na rekreacijski ligi v odbojki.
A5: Ime in priimek | B5: Podpis
A6: Mojca Kavčič
A7: Maja Nučič
A8: Saša Pavlič
A9: Anže Kuraš
A10: Miha Frelih
A11: Mark Mišič
A12: Nik Prešern
A13: Urban Potočnik
A14: Klemen Ravnihar
A15: Sergeja Podnar
A16: Matjaž Silič

Sheet list PCT (3) (hidden)
A1: Ime ekipe: Max bar
A3: S podpisom jamčim, da izpoljnjujem pogoj PCT na udeležbi na rekreacijski ligi v odbojki.
A5: Ime in priimek | B5: Podpis
A6: Tjaša Berginc
A7: Neva Suhadolčan
A8: Tanja Rode
A9: Nina Smolej
A10: Lucija Opalk
A11: John Mark Šorl
A12: Juš Hlede
A13: Nejc Ravnikar
A14: Erik Zupančič
A15: Urban Subotić
